bitfinex/quotes_SOLUSD_20241103
["timestamp","ask_amount","ask_price","bid_price","bid_amount"]
[1730607644673,18.738178,163.27,163.23,15.3158]
[1730607645192,12.613078,163.27,163.23,15.3158]
[1730607645392,12.613078,163.28,163.23,27.928878]
[1730607645975,12.613078,163.27,163.23,15.3158]
[1730607647372,12.613078,163.28,163.24,23.776884]
[1730607647569,12.613078,163.31,163.26,36.389962]
[1730607647873,12.613078,163.31,163.26,23.776884]
[1730607648287,12.613078,163.3,163.26,23.776884]
[1730607648471,12.613078,163.3,163.25,32.613078]
[1730607648472,12.613078,163.3,163.25,20.0]
[1730607648671,12.613078,163.3,163.25,26.1252]
[1730607649598,12.613078,163.3,163.25,41.4391]
[1730607650291,12.613078,163.3,163.25,54.052178]
[1730607650483,12.613078,163.29,163.25,21.4391]
[1730607651096,12.613078,163.29,163.25,15.3139]
[1730607653396,12.613078,163.28,163.25,15.3139]
[1730607653702,12.613078,163.29,163.25,15.3139]
[1730607656407,12.613078,163.29,163.25,21.4394]
[1730607656592,18.736878,163.3,163.25,21.4394]
[1730607658802,18.736878,163.3,163.25,27.926978]
[1730607659694,8.07390311,163.3,163.26,23.776884]
[1730607660792,8.07390311,163.3,163.26,29.901784]
[1730607661800,14.19640311,163.33,163.27,28.07390311]
[1730607662307,8.07390311,163.31,163.27,20.0]
[1730607662795,8.07390311,163.32,163.28,6.1244]
[1730607663600,8.07390311,163.34,163.29,31.85078711]
[1730607665003,8.07390311,163.37,163.32,8.07390311]
[1730607665303,8.07390311,163.38,163.33,23.776884]
[1730607665603,8.07390311,163.4,163.34,8.07390311]
[1730607665782,8.37478361,163.41,163.36,8.07390311]
[1730607665987,8.37478361,163.41,163.37,23.776884]
[1730607666284,8.07390311,163.4,163.34,8.07390311]
[1730607666490,8.07390311,163.39,163.35,20.0]
[1730607666879,8.07390311,163.39,163.34,26.1219]
[1730607667702,6.1201,163.4,163.34,54.02969498]
[1730607667703,12.60239498,163.4,163.34,54.02969498]
[1730607668200,12.60239498,163.39,163.34,41.4273]
[1730607669499,12.60239498,163.39,163.34,54.02969498]
[1730607670700,12.60239498,163.39,163.34,41.4273]
[1730607671296,12.60239498,163.38,163.34,41.4273]
[1730607671788,12.60239498,163.39,163.35,23.776884]
[1730607671998,12.60239498,163.4,163.35,36.37927898]
[1730607672500,12.60239498,163.37,163.32,27.92909498]
[1730607672702,12.60239498,163.36,163.32,15.3267]
[1730607672895,12.60239498,163.36,163.32,36.7569]
[1730607673683,12.60239498,163.38,163.34,23.776884]
[1730607674206,12.60239498,163.38,163.33,23.776884]
[1730607674916,12.60239498,163.38,163.32,49.35929498]
[1730607674917,12.60239498,163.4,163.35,23.776884]
[1730607675099,12.60239498,163.38,163.34,21.4275]
[1730607675597,12.60239498,163.4,163.35,23.776884]
[1730607675900,0.3008805,163.41,163.37,36.37927898]
[1730607676998,0.3008805,163.41,163.38,6.1207]
[1730607677989,0.3008805,163.41,163.39,23.776884]
[1730607678306,0.3008805,163.41,163.38,21.4224]
[1730607679595,0.3008805,163.41,163.38,15.3017]
[1730607679799,12.90327548,163.41,163.38,15.3017]
[1730607679992,12.60239498,163.4,163.38,15.3017]
[1730607680508,12.90327548,163.41,163.38,15.3017]
[1730607681611,0.3008805,163.41,163.38,15.3017]
[1730607682613,0.3008805,163.41,163.38,21.4224]
[1730607684191,0.3008805,163.41,163.39,23.776884]
[1730607685406,0.3008805,163.41,163.4,29.896784]
[1730607686508,12.90327548,163.41,163.39,6.1202]
[1730607687388,0.3008805,163.41,163.38,15.3017]
[1730607688501,8.06197968,163.39,163.37,6.121]
[1730607689497,8.06197968,163.38,163.36,23.776884]
[1730607689712,8.06197968,163.37,163.33,6.1222]
[1730607690015,8.06197968,163.36,163.33,6.1222]
[1730607690313,8.06197968,163.37,163.33,6.1222]
[1730607691200,8.06197968,163.37,163.34,23.776884]
[1730607691912,6.12,163.4,163.34,23.776884]
[1730607691913,8.06197968,163.38,163.34,23.776884]
[1730607692087,8.06197968,163.38,163.35,6.1218]
[1730607692592,8.06197968,163.39,163.35,6.1218]
[1730607693600,8.06197968,163.4,163.36,23.776884]
[1730607694117,8.36286018,163.41,163.37,20.0]
[1730607695414,8.36286018,163.41,163.37,26.1207]
[1730607695916,8.36286018,163.41,163.38,23.776884]
[1730607696113,0.3008805,163.41,163.38,23.776884]
[1730607696612,8.36286018,163.41,163.38,23.776884]
[1730607696812,8.06197968,163.4,163.38,23.776884]
[1730607697199,8.36286018,163.41,163.38,23.776884]
[1730607697445,8.36286018,163.41,163.38,29.897284]
[1730607697720,0.3008805,163.41,163.38,29.897284]
[1730607697907,8.36286018,163.41,163.38,29.897284]
[1730607698911,0.3008805,163.41,163.38,45.198984]
[1730607699707,8.36286018,163.41,163.38,45.198984]
[1730607702514,0.3008805,163.41,163.38,45.198984]
[1730607702701,0.3008805,163.41,163.38,53.26096368]
[1730607702901,0.3008805,163.41,163.38,45.198984]
[1730607703798,0.3008805,163.41,163.38,53.26096368]
[1730607704310,0.3008805,163.41,163.38,45.198984]
[1730607705811,0.3008805,163.41,163.4,23.776884]
[1730607708024,0.3008805,163.41,163.4,29.896784]
[1730607708413,0.3008805,163.41,163.4,23.776884]
[1730607708808,0.3008805,163.41,163.4,29.896784]
[1730607709128,0.3008805,163.41,163.4,23.776884]
[1730607714822,0.3008805,163.41,163.4,57.95876368]
[1730607719535,0.3008805,163.49,163.41,20.0]
[1730607719724,8.36286018,163.49,163.46,23.776884]
[1730607719918,14.47946018,163.49,163.46,23.776884]
[1730607720111,8.06197968,163.47,163.44,20.0]
[1730607720429,8.06197968,163.45,163.39,6.1203]
[1730607720619,8.06197968,163.41,163.38,15.9723]
[1730607720819,8.06197968,163.42,163.37,29.48537968]
[1730607721131,8.06197968,163.43,163.38,8.06197968]
[1730607721726,8.06197968,163.43,163.39,6.1203]
[1730607722111,6.1183,163.45,163.39,6.1203]
[1730607722112,8.06197968,163.42,163.39,6.1203]
[1730607722325,8.06197968,163.41,163.38,43.776884]
[1730607722531,8.06197968,163.41,163.38,20.0]
[1730607722835,6.1183,163.45,163.38,20.0]
[1730607722836,8.06197968,163.42,163.38,20.0]
[1730607723333,8.06197968,163.41,163.38,20.0]
[1730607723734,8.06197968,163.41,163.39,23.776884]
[1730607725138,6.1173,163.47,163.39,23.776884]
[1730607725139,8.06197968,163.43,163.39,23.776884]
[1730607725513,8.06197968,163.43,163.39,29.897084]
[1730607725913,8.06197968,163.42,163.39,29.897084]
[1730607727018,8.06197968,163.42,163.39,45.197884]
[1730607727453,8.06197968,163.41,163.39,45.197884]
[1730607727811,0.1,163.48,163.37,23.776884]
[1730607727812,8.06197968,163.4,163.37,23.776884]
[1730607728012,8.06197968,163.39,163.37,23.776884]
[1730607728217,8.06197968,163.38,163.37,23.776884]
[1730607728819,8.06197968,163.38,163.34,15.9342]
[1730607729018,8.06197968,163.35,163.32,15.3068]
[1730607729834,8.06197968,163.35,163.32,21.4297]
[1730607730048,8.06197968,163.34,163.32,15.3068]
[1730607730537,8.06197968,163.34,163.33,23.776884]
[1730607731131,8.06197968,163.35,163.33,23.776884]
[1730607732343,8.06197968,163.34,163.33,23.776884]
[1730607733034,8.06197968,163.35,163.33,29.899384]
[1730607733536,8.06197968,163.37,163.34,20.0]
[1730607733739,8.06197968,163.38,163.35,23.776884]
[1730607734550,8.06197968,163.36,163.34,20.0]
[1730607734851,6.1188,163.43,163.31,41.4316]
[1730607734852,8.06197968,163.35,163.31,41.4316]
[1730607735055,8.06197968,163.36,163.32,23.776884]
[1730607735258,8.06197968,163.36,163.32,29.899484]
[1730607736451,8.06197968,163.38,163.34,23.776884]
[1730607736646,8.06197968,163.37,163.34,23.776884]
[1730607737351,8.06197968,163.36,163.34,23.776884]
[1730607738437,8.06197968,163.36,163.33,26.1224]
[1730607739152,8.06197968,163.34,163.32,15.3073]
[1730607739957,8.06197968,163.36,163.32,21.4302]
[1730607740152,8.06197968,163.38,163.33,28.06197968]
[1730607740537,8.06197968,163.39,163.34,23.776884]
[1730607740741,8.06197968,163.38,163.34,23.776884]
[1730607741056,8.06197968,163.37,163.34,23.776884]
[1730607741357,8.06197968,163.35,163.32,15.3073]
[1730607741547,8.06197968,163.34,163.31,20.0]
[1730607742051,8.06197968,163.34,163.3,21.707]
[1730607742052,8.06197968,163.32,163.3,20.0]
[1730607742446,8.06197968,163.31,163.29,21.4335]
[1730607742840,8.06197968,163.31,163.28,6.1244]
[1730607743040,8.06197968,163.3,163.28,6.1244]
[1730607743251,8.06197968,163.31,163.27,21.4368]
[1730607743464,8.06197968,163.32,163.27,21.4368]
[1730607743849,8.06197968,163.32,163.28,20.0]
[1730607744242,8.06197968,163.32,163.29,23.776884]
[1730607745244,8.06197968,163.32,163.29,29.900684]
[1730607745455,8.06197968,163.34,163.31,23.776884]
[1730607745757,8.06197968,163.36,163.31,23.776884]
[1730607746744,8.06197968,163.35,163.32,6.1229]
[1730607748061,8.06197968,163.34,163.32,6.1229]
[1730607751558,8.06197968,163.35,163.32,21.4302]
[1730607751861,8.06197968,163.34,163.32,21.4302]
[1730607754464,8.06197968,163.33,163.29,20.0]
[1730607754766,8.06197968,163.33,163.3,21.4328]
[1730607755148,8.06197968,163.31,163.3,21.4328]
[1730607755344,8.06197968,163.34,163.3,21.4328]
[1730607756853,8.06197968,163.33,163.3,21.4328]
[1730607757572,8.06197968,163.33,163.31,23.776884]
[1730607757752,8.06197968,163.34,163.31,23.776884]
[1730607758071,8.06197968,163.35,163.32,21.4302]
[1730607763668,8.06197968,163.35,163.33,23.776884]
[1730607763876,8.06197968,163.38,163.33,23.776884]
[1730607764369,8.06197968,163.37,163.33,23.776884]
[1730607764556,6.1195,163.41,163.33,23.776884]
[1730607764557,8.06197968,163.36,163.33,23.776884]
[1730607764962,8.06197968,163.34,163.33,23.776884]
[1730607765265,8.06197968,163.34,163.29,35.31]
[1730607765675,8.06197968,163.32,163.29,35.31]
[1730607766166,8.06197968,163.32,163.3,6.1234]
[1730607766377,8.06197968,163.33,163.3,6.1234]
[1730607766553,8.06197968,163.32,163.3,6.1234]
[1730607769679,8.06197968,163.31,163.29,41.434]
[1730607769871,8.06197968,163.32,163.3,23.776884]
[1730607770077,8.06197968,163.31,163.29,41.434]
[1730607770460,23.31827968,163.3,163.22,32.56778468]
[1730607770668,8.06197968,163.24,163.21,21.4438]
[1730607770856,32.24791872,163.28,163.21,21.4438]
[1730607770857,6.1248,163.28,163.21,21.4438]
[1730607771567,15.2563,163.3,163.21,21.4438]
[1730607771877,8.06197968,163.26,163.21,21.4438]
[1730607772564,8.06197968,163.24,163.22,20.0]
[1730607773390,8.06197968,163.24,163.23,23.776884]
[1730607775574,14.18807968,163.24,163.2,0.3008805]
[1730607775880,8.06197968,163.25,163.2,14.49026018]
[1730607776084,8.06197968,163.26,163.21,8.06197968]
[1730607776283,8.06197968,163.26,163.2,29.80886018]
[1730607776575,8.06197968,163.25,163.2,21.7468805]
[1730607776775,8.06197968,163.23,163.21,43.776884]
[1730607777376,8.06197968,163.24,163.21,43.776884]
[1730607779880,8.06197968,163.23,163.21,43.776884]
[1730607780867,8.06197968,163.24,163.21,43.776884]
[1730607781888,8.06197968,163.23,163.21,49.903884]
[1730607782074,8.06197968,163.24,163.21,65.221484]
[1730607782888,8.06197968,163.23,163.21,65.221484]
[1730607783086,6.1254,163.26,163.2,0.3008805]
[1730607783087,8.06197968,163.22,163.2,0.3008805]
[1730607783288,8.06197968,163.21,163.2,0.3008805]
[1730607785475,14.18897968,163.21,163.2,0.3008805]
[1730607790191,46.4368984,163.21,163.2,0.3008805]
[1730607790488,46.4368984,163.21,163.13,20.0]
[1730607790802,8.06197968,163.14,163.13,20.0]
[1730607791179,8.06197968,163.14,163.12,20.3008805]
[1730607791576,8.06197968,163.15,163.13,43.776884]
[1730607791786,8.06197968,163.16,163.13,23.776884]
[1730607793375,8.06197968,163.16,163.13,29.906884]
[1730607794493,8.06197968,163.17,163.13,45.232084]
[1730607795372,8.06197968,163.16,163.12,0.3008805]
[1730607795596,8.06197968,163.16,163.12,6.4312805]
[1730607795792,14.19057968,163.17,163.12,6.4312805]
[1730607796687,8.06197968,163.16,163.12,6.4312805]
[1730607796887,8.06197968,163.17,163.13,23.776884]
[1730607797679,8.06197968,163.18,163.13,31.83886368]
[1730607799399,8.06197968,163.18,163.13,37.96856368]
[1730607799899,8.06197968,163.17,163.13,29.906584]
[1730607800104,8.06197968,163.16,163.13,20.0]
[1730607800602,8.06197968,163.17,163.14,23.776884]
[1730607800795,8.06197968,163.18,163.14,23.776884]
[1730607801005,14.19017968,163.18,163.14,23.776884]
[1730607801708,8.06197968,163.17,163.14,23.776884]
[1730607804999,14.19057968,163.17,163.13,26.1298]
[1730607806499,8.06197968,163.17,163.13,26.1298]
[1730607806695,8.06197968,163.18,163.14,23.776884]
[1730607807582,8.06197968,163.18,163.14,29.906384]
[1730607809882,8.06197968,163.19,163.14,45.230584]
[1730607810089,8.06197968,163.19,163.15,20.0]
[1730607810911,8.06197968,163.19,163.15,26.1292]
[1730607812702,8.06197968,163.21,163.16,23.776884]
[1730607813389,8.06197968,163.21,163.16,31.83886368]
[1730607813985,8.06197968,163.23,163.18,8.06197968]
[1730607814185,14.18787968,163.24,163.18,8.06197968]
[1730607814398,14.18787968,163.24,163.19,23.776884]
[1730607814601,8.06197968,163.23,163.19,23.776884]
[1730607814912,8.06197968,163.23,163.19,29.904484]
[1730607815798,14.18807968,163.24,163.19,29.904484]
[1730607816203,8.06197968,163.23,163.19,29.904484]
[1730607818809,8.06197968,163.24,163.19,37.96646368]
[1730607818993,8.06197968,163.26,163.21,8.06197968]
[1730607819303,8.06197968,163.25,163.2,28.06197968]
[1730607820411,14.18757968,163.25,163.2,34.18917968]
[1730607820988,8.06197968,163.23,163.2,20.0]
[1730607821193,8.06197968,163.23,163.19,45.224084]
[1730607821906,6.1256,163.25,163.19,45.224084]
[1730607822207,8.06197968,163.24,163.19,53.28606368]
[1730607822518,8.06197968,163.24,163.19,45.224084]
[1730607825793,8.06197968,163.24,163.19,53.28606368]
[1730607829198,8.06197968,163.24,163.19,45.224084]
[1730607830919,8.06197968,163.24,163.19,53.28606368]
[1730607831221,14.18777968,163.25,163.19,53.28606368]
[1730607831803,8.06197968,163.24,163.19,53.28606368]
[1730607832498,8.06197968,163.23,163.19,45.224084]
[1730607835622,8.06197968,163.24,163.19,45.224084]
[1730607835817,8.06197968,163.25,163.2,8.06197968]
[1730607836211,8.06197968,163.24,163.19,53.28606368]
[1730607837219,8.06197968,163.25,163.2,8.06197968]
[1730607838624,14.18767968,163.25,163.2,14.18927968]
[1730607840408,14.18767968,163.25,163.2,6.1273]
[1730607840916,8.06197968,163.22,163.18,23.776884]
[1730607841317,8.06197968,163.22,163.16,23.38397968]
[1730607841514,8.06197968,163.21,163.16,29.51277968]
[1730607842830,8.06197968,163.21,163.17,23.776884]
[1730607844416,8.06197968,163.21,163.17,29.905284]
[1730607847136,8.06197968,163.22,163.17,53.28866368]
[1730607847315,14.18827968,163.23,163.18,8.06197968]
[1730607847613,6.1263,163.23,163.19,8.06197968]
[1730607847813,14.18797968,163.24,163.19,8.06197968]
[1730607848333,8.06197968,163.23,163.18,8.06197968]
[1730607849031,8.06197968,163.24,163.19,8.06197968]
[1730607849532,8.06197968,163.25,163.2,8.06197968]
[1730607850116,14.18787968,163.25,163.2,14.18937968]
[1730607852334,8.06197968,163.24,163.2,23.776884]
[1730607854035,8.06197968,163.24,163.2,29.904184]
[1730607855543,14.18787968,163.25,163.2,37.96616368]
[1730607855736,14.18787968,163.25,163.2,53.28476368]
[1730607857132,8.06197968,163.29,163.24,8.06197968]
[1730607857636,8.06197968,163.29,163.23,8.06197968]
[1730607858027,6.1244,163.28,163.23,14.18807968]
[1730607858341,8.06197968,163.27,163.23,6.1261]
[1730607859423,8.06197968,163.25,163.21,21.4092]
[1730607859627,8.06197968,163.25,163.21,6.1269]
[1730607861737,8.06197968,163.26,163.21,14.18887968]
[1730607861934,8.06197968,163.27,163.22,8.06197968]
[1730607862137,8.06197968,163.28,163.23,8.06197968]
[1730607862941,8.06197968,163.27,163.22,31.83886368]
[1730607863245,8.06197968,163.31,163.26,8.06197968]
[1730607863743,8.06197968,163.31,163.25,28.06197968]
[1730607863926,8.06197968,163.3,163.25,28.06197968]
[1730607864325,8.06197968,163.29,163.25,20.0]
[1730607864526,8.06197968,163.28,163.24,23.776884]
[1730607865248,8.06197968,163.28,163.25,6.1255]
[1730607865445,8.06197968,163.29,163.25,6.1255]
[1730607865936,8.06197968,163.3,163.26,23.776884]
[1730607867951,14.18547968,163.31,163.27,23.776884]
[1730607869650,14.18547968,163.31,163.27,29.901584]
[1730607870753,8.06197968,163.3,163.27,29.901584]
[1730607870932,8.06197968,163.31,163.27,29.901584]
[1730607871266,8.06197968,163.3,163.27,29.901584]
[1730607871962,8.06197968,163.29,163.26,21.438]
[1730607873060,8.06197968,163.29,163.26,15.3129]
[1730607874050,8.06197968,163.3,163.27,23.776884]
[1730607875454,14.18537968,163.31,163.27,23.776884]
[1730607875942,8.06197968,163.3,163.27,23.776884]
[1730607879366,8.06197968,163.32,163.27,45.213584]
[1730607879660,8.06197968,163.32,163.27,53.27556368]
[1730607879852,8.06197968,163.32,163.27,45.213584]
[1730607880757,8.06197968,163.32,163.27,53.27556368]
[1730607882343,8.06197968,163.31,163.27,45.213584]
[1730607882566,14.18517968,163.32,163.27,45.213584]
[1730607884647,8.06197968,163.31,163.27,39.088884]
[1730607884959,8.06197968,163.3,163.27,23.776884]
[1730607886177,14.18547968,163.31,163.27,23.776884]
[1730607887463,8.06197968,163.3,163.27,23.776884]
[1730607888743,14.18567968,163.3,163.27,23.776884]
[1730607892372,8.06197968,163.31,163.27,6.1246]
[1730607892750,8.06197968,163.31,163.28,23.776884]
[1730607893463,8.06197968,163.29,163.23,22.1891]
[1730607893666,8.06197968,163.25,163.21,21.4441]
[1730607893872,8.06197968,163.25,163.21,15.3172]
[1730607894074,8.06197968,163.23,163.21,15.3172]
[1730607894759,8.06197968,163.22,163.19,15.2338]
[1730607895087,8.06197968,163.2,163.17,15.3206]
[1730607895268,8.06197968,163.2,163.15,29.42497968]
[1730607895458,14.18947968,163.2,163.15,29.42497968]
[1730607895662,14.18947968,163.2,163.15,21.363]
[1730607896055,8.06197968,163.19,163.15,21.363]
[1730607896573,8.06197968,163.2,163.16,20.0]
[1730607897473,8.06197968,163.2,163.16,26.1289]
[1730607898374,8.06197968,163.2,163.17,23.776884]
[1730607898560,8.06197968,163.22,163.17,23.776884]
[1730607899770,8.06197968,163.22,163.19,23.776884]
[1730607900387,6.1261,163.24,163.19,23.776884]
[1730607900388,8.06197968,163.24,163.19,23.776884]
[1730607900555,8.06197968,163.23,163.19,23.776884]
[1730607901563,8.06197968,163.24,163.19,45.223784]
[1730607901765,8.06197968,163.24,163.19,53.28576368]
[1730607903057,8.06197968,163.24,163.19,45.223784]
[1730607903752,6.1255,163.25,163.19,45.223784]
[1730607903961,8.06197968,163.22,163.19,45.223784]
[1730607904557,8.06197968,163.24,163.19,45.223784]
[1730607905579,8.06197968,163.24,163.19,53.28576368]
[1730607906263,8.06197968,163.24,163.2,20.0]
[1730607907263,8.06197968,163.23,163.19,45.223784]
[1730607907595,8.06197968,163.22,163.19,45.224184]
[1730607909682,8.06197968,163.24,163.19,53.28616368]
[1730607910465,8.06197968,163.24,163.19,45.224184]
[1730607910779,8.06197968,163.26,163.21,31.83886368]
[1730607911080,8.06197968,163.27,163.21,47.66336368]
[1730607911460,8.06197968,163.27,163.22,8.06197968]
[1730607911666,8.06197968,163.27,163.23,23.776884]
[1730607911965,8.06197968,163.29,163.23,31.83886368]
[1730607912163,8.06197968,163.29,163.25,23.776884]
[1730607912689,8.06197968,163.29,163.25,29.902284]
[1730607913886,8.06197968,163.29,163.25,45.216184]
[1730607914755,14.18577968,163.3,163.25,45.216184]
[1730607915680,8.06197968,163.3,163.25,53.27816368]
[1730607916461,8.06197968,163.3,163.25,45.216184]
[1730607916872,8.06197968,163.3,163.25,53.27816368]
[1730607917179,8.06197968,163.3,163.27,23.776884]
[1730607917880,8.06197968,163.3,163.27,6.1248]
[1730607921990,8.06197968,163.3,163.28,23.776884]
[1730607922977,8.06197968,163.31,163.28,23.776884]
[1730607923483,8.06197968,163.33,163.28,31.83886368]
[1730607923781,14.18327968,163.37,163.32,23.776884]
[1730607923982,14.18327968,163.37,163.32,37.96146368]
[1730607924374,8.06197968,163.38,163.32,37.96146368]
[1730607924563,14.18187968,163.4,163.35,8.06197968]
[1730607925185,14.18187968,163.4,163.34,51.83886368]
[1730607925477,8.06197968,163.39,163.34,51.83886368]
[1730607925672,14.18247968,163.39,163.34,51.83886368]
[1730607925873,8.06197968,163.37,163.34,49.898984]
[1730607926075,8.06197968,163.36,163.34,23.776884]
[1730607926378,8.06197968,163.35,163.33,23.776884]
[1730607927884,8.06197968,163.36,163.33,23.776884]
[1730607928368,8.06197968,163.37,163.33,23.776884]
[1730607929475,8.06197968,163.36,163.33,23.776884]
[1730607930279,14.18307968,163.37,163.33,23.776884]
[1730607931870,8.06197968,163.36,163.33,23.776884]
[1730607934400,8.06197968,163.36,163.32,15.3073]
[1730607934575,8.06197968,163.35,163.31,6.1232]
[1730607934888,8.06197968,163.35,163.32,23.776884]
[1730607935689,8.06197968,163.34,163.29,45.06187968]
[1730607935897,8.06197968,163.33,163.3,43.776884]
[1730607937989,14.18427968,163.34,163.3,49.900484]
[1730607938375,8.06197968,163.36,163.31,8.06197968]
[1730607938576,8.06197968,163.32,163.26,8.06197968]
[1730607938771,8.06197968,163.3,163.28,23.776884]
[1730607940786,8.06197968,163.29,163.25,15.4401]
[1730607940984,8.06197968,163.26,163.24,15.3146]
[1730607941299,8.06197968,163.25,163.22,6.1266]
[1730607941595,8.06197968,163.27,163.22,29.50527968]
[1730607942287,8.06197968,163.27,163.23,20.0]
[1730607943586,8.06197968,163.27,163.23,26.1261]
[1730607948010,8.06197968,163.28,163.23,49.50387968]
[1730607948393,8.06197968,163.28,163.24,23.776884]
[1730607950293,8.06197968,163.28,163.25,6.1255]
[1730607952476,8.06197968,163.28,163.25,21.4394]
[1730607953105,8.06197968,163.26,163.21,15.317]
[1730607953288,8.06197968,163.23,163.21,15.317]
[1730607953490,8.06197968,163.22,163.18,21.448]
[1730607954391,8.06197968,163.22,163.19,20.0]
[1730607954698,8.06197968,163.23,163.19,26.1275]
[1730607956485,8.06197968,163.23,163.19,41.447]
[1730607960210,8.06197968,163.25,163.2,23.776884]
[1730607960405,6.1249,163.27,163.2,23.776884]
[1730607960406,8.06197968,163.26,163.21,28.06197968]
[1730607960615,8.06197968,163.24,163.21,20.0]
[1730607960787,8.06197968,163.23,163.2,23.776884]
[1730607961108,8.06197968,163.23,163.2,20.0]
[1730607961690,8.06197968,163.22,163.2,20.0]
[1730607961889,8.06197968,163.21,163.19,15.3195]
[1730607962097,8.06197968,163.2,163.19,15.3195]
[1730607962301,8.06197968,163.21,163.19,15.3195]
[1730607967524,8.06197968,163.2,163.17,6.1285]
[1730607968525,8.06197968,163.2,163.17,21.4499]
[1730607968738,8.06197968,163.21,163.17,21.4499]
[1730607970305,8.06197968,163.22,163.17,21.4499]
[1730607970509,8.06197968,163.23,163.18,20.0]
[1730607970806,8.06197968,163.22,163.18,20.0]
[1730607972342,8.06197968,163.22,163.19,6.1278]
[1730607974135,8.06197968,163.21,163.19,6.1278]
[1730607977030,8.06197968,163.22,163.19,6.1278]
[1730607978136,8.06197968,163.23,163.19,21.4473]
[1730607981260,8.06197968,163.22,163.19,21.4473]
[1730607981550,8.06197968,163.21,163.19,21.4473]
[1730607982455,8.06197968,163.22,163.19,21.4473]
[1730607983154,8.06197968,163.23,163.19,21.4473]
[1730607985239,8.06197968,163.22,163.19,21.4473]
[1730607986464,8.06197968,163.21,163.19,21.4473]
[1730607987763,8.06197968,163.22,163.19,21.4473]
[1730607991146,47.75951872,163.28,163.19,21.4473]
[1730607991147,8.06197968,163.21,163.19,15.3195]
[1730607991746,8.06197968,163.22,163.19,15.3195]
[1730607992758,8.06197968,163.22,163.19,21.4473]
[1730607992943,8.06197968,163.21,163.19,21.4473]
[1730607993348,8.06197968,163.2,163.16,15.3218]
[1730607993664,8.06197968,163.17,163.13,6.13]
[1730607993966,8.06197968,163.16,163.13,6.13]
[1730607994467,8.06197968,163.16,163.13,21.4547]
[1730607996367,8.06197968,163.18,163.13,29.51667968]
[1730607996667,14.18977968,163.19,163.13,29.51667968]
[1730607997365,8.06197968,163.16,163.13,21.4547]
[1730607997666,8.06197968,163.16,163.13,15.3247]
[1730607999174,8.06197968,163.16,163.13,21.4547]
[1730607999467,8.06197968,163.14,163.12,0.3008805]
[1730607999673,8.06197968,163.13,163.12,0.3008805]
[1730607999972,8.06197968,163.14,163.12,0.3008805]
[1730608000957,8.06197968,163.17,163.12,29.81926018]
[1730608001161,15.4167,163.22,163.12,29.81926018]
[1730608001162,8.06197968,163.16,163.12,21.7572805]
[1730608004277,8.06197968,163.15,163.12,21.7572805]
[1730608007177,8.06197968,163.16,163.12,21.7572805]
[1730608010076,8.06197968,163.18,163.13,23.776884]
[1730608010879,8.06197968,163.17,163.13,29.906784]
[1730608012571,8.06197968,163.16,163.13,6.1299]
[1730608012773,8.06197968,163.15,163.13,6.1299]
[1730608013672,8.06197968,163.14,163.12,15.6269805]
[1730608013862,8.06197968,163.13,163.12,0.3008805]
[1730608014055,8.06197968,163.14,163.12,0.3008805]
[1730608014782,8.06197968,163.15,163.12,0.3008805]
[1730608015283,8.06197968,163.15,163.12,6.4312805]
[1730608017183,8.06197968,163.14,163.12,6.4312805]
[1730608017389,8.06197968,163.15,163.12,6.4312805]
[1730608018884,8.06197968,163.16,163.12,6.4312805]
[1730608019682,8.06197968,163.15,163.12,6.4312805]
[1730608019984,8.06197968,163.16,163.12,6.4312805]
[1730608020168,8.06197968,163.15,163.12,6.4312805]
[1730608021169,8.06197968,163.16,163.12,6.4312805]
[1730608021983,8.06197968,163.17,163.12,6.4312805]
[1730608022782,8.06197968,163.16,163.12,6.4312805]
[1730608023476,8.06197968,163.15,163.12,6.4312805]
[1730608023676,8.06197968,163.16,163.12,6.4312805]
[1730608024483,8.06197968,163.18,163.12,29.81936018]
[1730608024791,8.06197968,163.17,163.12,29.81936018]
[1730608033587,8.06197968,163.17,163.12,21.7573805]
[1730608034894,8.06197968,163.17,163.12,29.81936018]
[1730608035508,8.06197968,163.18,163.12,29.81936018]
[1730608036393,8.06197968,163.18,163.13,8.06197968]
[1730608036712,8.06197968,163.2,163.14,23.38617968]
[1730608036889,16.2416,163.23,163.14,23.38617968]
[1730608036890,8.06197968,163.21,163.16,8.06197968]
[1730608037885,8.06197968,163.21,163.17,6.1285]
[1730608042809,8.06197968,163.22,163.17,6.1285]
[1730608043279,8.06197968,163.23,163.18,8.06197968]
[1730608043485,6.1259,163.24,163.19,8.06197968]